Cogmind - Beta 12 @@@ ROGUE MODE // 2023.10.01 @ 20:32:01 Player: heavymetalmidis Result: Self-destructed Performance ------------- Evolutions (1) 500 Regions Visited (2) 400 Robots Destroyed (18) 90 Value Destroyed (394) 394 Prototype IDs (2) 40 Alien Tech Used (0) 0 Bonus (0) 0 TOTAL SCORE: 1424 Bonus ------- None Cogmind --------- Core Integrity 316/400 Matter 282/300 Energy 250/250 System Corruption 0% Temperature Cool (0) Movement Rolling (140) Ox4 Location -9/Materials Parts ------- > --- POWER (1) -------- Ion Engine > --- PROPULSION (2) --- Wheel > --- UTILITY (4) ------ Heat Sink High-capacity Storage Unit Sensor Array Terrain Scanner > --- WEAPON (2) ------- Medium Laser > --- INVENTORY (20) --- Ion Engine Ion Engine Light Ion Engine Light Ion Engine Wheel Wheel Hover Unit Improved Flight Unit Small Storage Unit Medium Storage Unit High-capacity Storage Unit High-capacity Storage Unit High-capacity Battery (250) High-capacity Matter Pod (90) Weight Redist. System Seismic Detector Hacking Suite Tractor Beam Light Assault Rifle Peak State ------------ > --- POWER ------------ Ion Engine > --- PROPULSION ------- Wheel Compact Wheel > --- UTILITY ---------- Heat Sink High-capacity Storage Unit Sensor Array Terrain Scanner > --- WEAPON ----------- Medium Laser Light Assault Rifle > --- INVENTORY -------- Ion Engine Ion Engine Light Ion Engine Light Ion Engine Wheel Wheel Hover Unit Small Storage Unit Medium Storage Unit High-capacity Storage Unit High-capacity Storage Unit High-capacity Battery High-capacity Matter Pod Weight Redist. System Seismic Detector Hacking Suite Tractor Beam Light Assault Rifle [Rating: 11] Favorites ----------- Power Ion Engine Engine Ion Engine Propulsion Aluminum Leg Treads Light Treads Leg Aluminum Leg Wheel Wheel Utility High-capacity Storage Unit Device Sensor Array Storage High-capacity Storage Unit Weapon Medium Laser Energy Gun Medium Laser Ballistic Gun Light Assault Rifle Build | -11 -10 -9 ------- Run | Jun Mat Mat Slots Evolved 2 | . . 2 Power . | . . . Propulsion . | . . . Utility 2 | . . 2 Weapon . | . . . Parts Attached 20 | 8 10 2 Power 2 | 1 1 . Engine 2 | 1 1 . Core . | . . . Reactor . | . . . Propulsion 6 | 3 3 . Treads 1 | 1 . . Leg 3 | 2 1 . Wheel 2 | . 2 . Hover . | . . . Flight . | . . . Utility 7 | 1 4 2 Device 4 | . 2 2 Storage 3 | 1 2 . Processor . | . . . Hackware . | . . . Protection . | . . . Artifact . | . . . Weapon 5 | 3 2 . Energy Gun 4 | 3 1 . Energy Cannon . | . . . Ballistic Gun 1 | . 1 . Ballistic Cannon . | . . . Launcher . | . . . Special Weapon . | . . . Impact Weapon . | . . . Slashing Weapon . | . . . Piercing Weapon . | . . . Special Melee Weapon . | . . . Unidentified Prototypes . | . . . Parts Lost 4 | . 2 2 Power . | . . . Propulsion 2 | . 1 1 Utility . | . . . Weapon 2 | . 1 1 Highest Loss Streak 2 | . 2 2 To Critical Strikes . | . . . Average Slot Usage (%) 98 | . 98 91 Engine 13 | . 14 11 Leg 9 | . 9 . Wheel 18 | . 18 20 Device 14 | . 13 28 Storage 13 | . 14 11 Energy Gun 25 | . 26 11 Ballistic Gun 1 | . . 9 Naked Turns . | . . . Heaviest Build 51 | 14 49 51 Greatest Support 26 | 20 26 26 Greatest Overweight (x) 4 | 4 1 1 Average Overweight (x) . | . . 1 Largest Inventory Capacity 20 | 8 20 20 Average Capacity 15 | 6 16 20 Most Carried 20 | 7 20 20 Average Carried 14 | 4 14 19 Final Capacity 20 | 8 20 20 Final Carried 20 | 6 20 19 Class Distribution -------------------- 100% | Mutant Dominant Class ---------------- Mutant | -10/Materials Mutant | -9/Materials Resources | -11 -10 -9 ----------- Run | Jun Mat Mat Matter Collected 570 | 268 302 . Remotely . | . . . Salvage Created 567 | . 512 55 Parts 34 | . 33 1 Haulers Intercepted 2 | . 2 . Recyclers Shooed . | . . . Parts Field Recycled . | . . . Retrieved Matter . | . . . Parts Self-Destructed . | . . . Prevented . | . . . Kills | -11 -10 -9 ------- Run | Jun Mat Mat Combat Hostiles Destroyed 14 | . 13 1 Guns 13 | . 12 1 Classes Destroyed 6 | . 5 1 Hauler 2 | . 2 . Operator 1 | . 1 . Watcher 1 | . 1 . Swarmer 6 | . 6 . Grunt 7 | . 7 . Duelist 1 | . . 1 Best Kill Streak 3 | . 3 1 Combat Bots Only 2 | . 2 1 Max Kills in Single Turn 1 | . 1 1 Gunslinging . | . . . Exploded . | . . . Melee . | . . . Uniques/NPCs Destroyed . | . . . Combat | -11 -10 -9 -------- Run | Jun Mat Mat Damage Taken 900 | . 669 231 Core 264 | . 180 84 Absorbed by Shields . | . . . Regen/Repaired (Parts) 360 | . 360 . Core Remaining (%) 64 | 100 28 . Volleys Fired 88 | . 79 9 Largest 2 | . 2 2 Hottest 100 | . 100 70 Shots Fired 158 | . 144 14 Gun 158 | . 144 14 Cannon . | . . . Launcher . | . . . Special . | . . . Kinetic 12 | . 7 5 Thermal 146 | . 137 9 Explosive . | . . . Electromagnetic . | . . . Robot Hit Streak 11 | . 11 9 Robot Miss Streak 4 | . 4 1 Penetration Max . | . . . Secondary Targets . | . . . Shots Hit Robots 93 | . 81 12 Core Hits 33 | . 29 4 Critical Kills . | . . . Critical Parts Destroyed . | . . . Critical Strikes 6 | . 4 2 Burn 6 | . 4 2 Melee Attacks . | . . . Impact . | . . . Slashing . | . . . Piercing . | . . . Sneak Attacks . | . . . Combat Hostiles . | . . . Follow-up Attacks . | . . . Damage Inflicted 1087 | . 958 129 Guns 1087 | . 958 129 Cannons . | . . . Explosions . | . . . Melee . | . . . Ramming . | . . . Kinetic 103 | . 62 41 Thermal 984 | . 896 88 Explosive . | . . . Electromagnetic . | . . . Impact . | . . . Slashing . | . . . Piercing . | . . . Highest Corruption . | . . . Average Corruption . | . . . Corruption Purged . | . . . Corruption Blocked . | . . . Overload Shots . | . . . Overflow Damage . | . . . Projectiles . | . . . Explosions . | . . . Melee . | . . . Knockbacks . | . . . Impact . | . . . Kinetic . | . . . Secondary . | . . . Self-Inflicted Damage . | . . . Shots . | . . . Rammed . | . . . Targets Rammed . | . . . Kicked . | . . . Crushed . | . . . Highest Temperature 448 | . 448 10 Average Temperature 110 | . 113 5 Received Heat Transfer 276 | . 258 18 Effects 9 | . 9 . Shutdowns 4 | . 4 . Energy Bleed 2 | . 2 . Matter Decay 2 | . 2 . Short Circuit 1 | . 1 . Siege Activations . | . . . Robots Corrupted . | . . . Combat Hostiles . | . . . Parts Fried . | . . . Impact Corruptions . | . . . Robots Melted 1 | . 1 . Combat Hostiles 1 | . 1 . Parts Melted 6 | . 6 . Heat Transferred 3225 | . 2818 407 Parts Sabotaged . | . . . Parts Stolen . | . . . Parts Stripped . | . . . Power Chain Reactions . | . . . Missiles Intercepted . | . . . Alert | -11 -10 -9 ------- Run | Jun Mat Mat Peak Influence 144 | . 144 64 Initial 54 | . . 54 Average 54 | . 58 51 Maximum Alert Level . | . . . Low Security (%) 100 | 100 100 100 Level 1 . | . . . Level 2 . | . . . Level 3 . | . . . Level 4 . | . . . Level 5 . | . . . High Security . | . . . Max Security . | . . . Squads Dispatched 5 | . 5 . Investigation 3 | . 3 . Extermination . | . . . Reinforcement 2 | . 2 . Assault . | . . . Garrison . | . . . Intercept . | . . . Searches Triggered . | . . . Construction Impeded . | . . . Haulers Reinforced . | . . . Active Scanning Responses . | . . . Cargo Convoy Interrupts . | . . . Stealth | -11 -10 -9 --------- Run | Jun Mat Mat Distress Signals 3 | . 3 . Communications Jammed . | . . . Distress Signals . | . . . Times Spotted 28 | . 26 2 Peak Tracking Total 4 | . 4 2 Tactical Retreats 2 | . 2 . Traps | -11 -10 -9 ------- Run | Jun Mat Mat Traps Triggered 3 | . 3 . Indirectly . | . . . Trap Hack Attempts . | . . . Triggered . | . . . Disarmed . | . . . Reprogrammed . | . . . Reused . | . . . Traps Extracted . | . . . Installed . | . . . Triggered . | . . . Machines | -11 -10 -9 ---------- Run | Jun Mat Mat Machines Disabled . | . . . Max in Single Turn . | . . . Machines Repaired . | . . . Machines Sabotaged . | . . . Overloaded Fab Kills . | . . . Hacking | -11 -10 -9 --------- Run | Jun Mat Mat Machines Accessed 8 | . 8 . Terminals 5 | . 5 . Fabricators . | . . . Repair Stations 1 | . 1 . Recycling Units 2 | . 2 . Scanalyzers . | . . . Garrison Access . | . . . Total Hacks 15 | . 15 . Successful 6 | . 6 . Failed 9 | . 9 . Catastrophic 4 | . 4 . Database Lockouts . | . . . Manual . | . . . Terminals 8 | . 8 . Fabricators . | . . . Repair Stations 4 | . 4 . Recycling Units 3 | . 3 . Scanalyzers . | . . . Garrison Access . | . . . Terminal Hacks 1 | . 1 . Prototype ID Bank 1 | . 1 . Fabricator Hacks . | . . . Repair Station Hacks 2 | . 2 . Scan Component 1 | . 1 . Repair 1 | . 1 . Recycling Unit Hacks 3 | . 3 . Report Inventory 2 | . 2 . Retrieve Components 1 | . 1 . Scanalyzer . | . . . Garrison Access Hacks . | . . . Unauthorized Hacks . | . . . Terminals . | . . . Fabricators . | . . . Repair Stations . | . . . Recycling Units . | . . . Scanalyzers . | . . . Garrison Access . | . . . Data Cores Recovered 1 | . 1 . Used . | . . . Hacking Detections 5 | . 5 . Full Trace Events . | . . . Feedback Events . | . . . Feedback Blocked . | . . . Robot Schematics Acquired . | . . . Robots Built . | . . . Authchips . | . . . Time . | . . . Total Robot Build Rating . | . . . Part Schematics Acquired . | . . . Parts Built . | . . . Authchips . | . . . Time . | . . . Total Part Build Rating . | . . . Parts Repaired 1 | . 1 . Time 26 | . 26 . Parts Recycled . | . . . Recycled Matter . | . . . Retrieved Matter . | . . . Retrieved Components 1 | . 1 . Parts Scanalyzed . | . . . Part Schematics Acquired . | . . . Parts Damaged . | . . . Bothacking | -11 -10 -9 ------------ Run | Jun Mat Mat Used RIF Installer . | . . . Robots Hacked . | . . . Non-combat . | . . . Combat . | . . . Robot Hacks Applied . | . . . Relay Couplers Released . | . . . Fabnet Peak Effective % . | . . . Robots Rewired . | . . . Allies Hacked . | . . . Hacks Repelled . | . . . Allies | -11 -10 -9 -------- Run | Jun Mat Mat Total Allies . | . . . Largest Group . | . . . Highest-Rated Group . | . . . Highest-Rated Ally . | . . . Total Orders . | . . . Ally Attacks . | . . . Total Damage . | . . . Kills . | . . . Allies Corrupted . | . . . Allies Melted . | . . . Intel | -11 -10 -9 ------- Run | Jun Mat Mat Robot Analysis Total . | . . . Derelict Logs Recovered . | . . . Drone Launches . | . . . Drone Recoveries . | . . . Exploration | -11 -10 -9 ------------- Run | Jun Mat Mat Turns Passed 1644 | 89 1484 71 Spaces Moved 1125 | 52 1041 32 Core 19 | 19 . . Treads 3 | 3 . . Legs 363 | 30 333 . Wheels 740 | . 708 32 Hover . | . . . Flight . | . . . Fastest Speed 50 | 50 105 105 Average Speed 111 | 136 110 105 Slowest Speed 250 | 250 190 105 Overloaded Moves . | . . . Propulsion Burnouts . | . . . Robots Hopped . | . . . Cave-ins Triggered . | . . . Exploration Rate (%) 35 | 4 97 5 Regions Visited 2 Branch Regions . Pre-discovered Areas . | . . . Known Exits Taken . | . . . Unknown Exits Taken 2 | 1 1 . Scrap Searched . | . . . Spaces Dug . | . . . Terrain Destroyed . | . . . Melee . | . . . Projectile . | . . . AOE . | . . . Terrain Rammed . | . . . Walls Destroyed . | . . . Machines Disabled . | . . . Actions | -11 -10 -9 --------- Run | Jun Mat Mat Total 1359 | 67 1236 56 Wait 83 | . 71 12 Move 1123 | 51 1040 32 Hop . | . . . Pick Up 34 | 7 26 1 Fast Attach 6 | 5 1 . Attach 7 | 2 3 2 Detach 1 | 1 . . Swap 7 | 1 6 . Drop 10 | . 10 . Fire 88 | . 79 9 Melee . | . . . Ram . | . . . Kick . | . . . Crush . | . . . Escape Stasis . | . . . Rewire . | . . . Trap . | . . . Miscellaneous . | . . . Route ------- -11/Junkyard -10/Materials (discovered 4 exits: *Mat x3 / [*Min]) -9/Materials History --------- Turn | Location | Event 9 | -11/Junkyard | Discovered new exit (range 15) 90 | -11/Junkyard | Entered Materials 302 | -10/Materials | Build established: Mutant 391 | -10/Materials | Discovered new exit (range 3) 398 | -10/Materials | Repaired Hcp. Storage Unit 882 | -10/Materials | Discovered new exit (range 6) 1042 | -10/Materials | Discovered new exit (range 10) 1294 | -10/Materials | Core integrity fell below 50% 1362 | -10/Materials | Discovered new exit (range 14) 1574 | -10/Materials | Entered another Materials area 1574 | -9/Materials | Evolved 2 slots: Utility x2 1645 | -9/Materials | Self-destructed Last Messages --------------- 01531_ S-10 Pest destroyed. 01537_ Acquired 14 matter. 01543_ Destroyed Hover Unit. 01549_ Destroyed Lgt. Ion Engine. 01550_ R-06 Scavenger collects Flight Unit. 01567_ Connecting with Repair Station... PARAMETERS=UTILITY+2 LOCATION=UNKNOWN GOAL=ESCAPE 01592_ Acquired Prototype Flight Unit. 01601_ Connecting with Terminal... 01601_ Current location identified: Materials 01629_ L-31 Rogue suffers critical hit (Burn). 01630_ Com. Wheel destroyed. 01634_ L-31 Rogue suffers critical hit (Burn). 01635_ Lgt. Assault Rifle destroyed. 01640_ L-31 Rogue heat damages Core Shielding. 01642_ L-31 Rogue heat damages Katana, Imp. Ion Engine, Melee Analysis Suite, Core Shielding. 01643_ L-31 Rogue destroyed. Map ----- +----------------------------------------------------+ | ????????????????????????????????????????????? | | ????????????????????????????????????????????? | | ????????????????????????????????????????????? | | ??????????????????? ????????????????????????? | | ??????????????????? #???????????????????????? | | ??????????????????? #???????????????????????? | | ?????????????????? #???????????????????????? | | ?????????????????? +???????????????????????? | | ?????????????????? #???????????????????????? | | ????????????????? #???????????????????????? | | ????????????????? #???????????????????????? | | ????????????????? ###?????????????????????? | | ????????????##### T#?????????????????????? | | ????????????# ""#?????????????????????? | | ????????????# ###?????????????????????? | | ????????????# #???????????????????????? | | ????????????## #####???????????????????????? | | ?????????????# #???????????????????????????? | | ?????????????# #?????????????? ????????????? | | ?????????????# #?????????#??? ????????????? | | ?????????????# ######?#????????????????????? | | ?????????????# # #??????????????????????? | | ????????# ###? # #??????????????????????? | | ????????# ? # #??????????????????????? | | ????????# + #########??????????????? | | ?????? ?# """ # @# # #???????????? | | ????????# """ # ""%+= + +???????????? | | ????????# """ # "T # # #??"????????? | | ????????+ # "" ####+####??????????????? | | ????????# # #??# ????????????????? | | ????????## ### ######??# ????? ????????? | | ????????## ??# #???????# ### #???#????????? | | ?????????#???# ?????? ?# #???#????????????? | | ?????????????# ????????# #????????????????? | | ????????????## ????????## #????????????????? | | ?????????????# ?? ?????# +????????????????? | | ?????????????? ????????# #????????????????? | | ?????????????? ??? ?????? #????????????????? | | ?????????????? ????????? #????????????????? | | ????????????????????????? #????????????????? | | ???????????????????? ???? +????????????????? | | ?????????????????????????##?????????????????? | | ????????????????????????????????????????????? | | ????????????????????????????????????????????? | | ????????????????????????????????????????????? | | ????????????????????????????????????????????? | | ????????????????????????????????????????????? | | ????????????????????????????????????????????? | | ????????????????????????????????????????????? | | ????????????????????????????????????????????? | +----------------------------------------------------+ Best States ------------- Heat Dissipation 38 Energy Generation 10 Energy Capacity 250 Matter Stores 300 Matter Capacity 300 Sight Range 16 Robot Scan Range 14 Terrain Scan Range 14 Terrain Scan Density 10 Evasion (%) 55 Recoil Reduction 1 Item Schematics ----------------- None Robot Schematics ------------------ None Fabricated ------------ Nothing Alien Tech Used ----------------- None Achievements -------------- None Challenges ------------ None Game ------ Seed FusionDisruptorSpoofer Manual? 0 Play Time 00:28:22 Cumulative 42.5 hours Start 2023.03.10 @ 17:37:56 End 2023.10.01 @ 20:32:01 Sessions 3 Manual Loads 0 Difficulty Rogue Special Mode None Game No. 16 Rogue 8 Adventurer 2 Explorer 6 Win Type - Total 0 Types 0/0/0/0/0/0/0/0/0 Lore% 20 Gallery% 28 Achievement% 26 Wizard Run 0 Options --------- ASCII 0 Keyboard 0 Movement Numpad Keybinds 0 Fullscreen 2 Font 18/Smallcaps Map View 76x50 Tactical HUD 1 Map Filters NONE Filters NONE Steam 1 RUN: 98cac422-fd94-497c-a2de-96ebe4686c54